bitfinex/quotes_BTCUSD_20220218
["timestamp","ask_amount","ask_price","bid_price","bid_amount"]
[1645190735841,0.1,40404.0,40403.0,0.00028204]
[1645190736039,0.432667,40404.0,40399.0,0.2033]
[1645190736239,0.332667,40403.0,40399.0,0.2033]
[1645190736440,0.1,40400.0,40399.0,0.2033]
[1645190737180,0.1,40400.0,40399.0,0.2]
[1645190738184,0.1,40400.0,40399.0,0.25]
[1645190738384,0.101,40400.0,40399.0,0.25]
[1645190739483,0.65641141,40404.0,40403.0,0.20248968]
[1645190739682,0.95641141,40404.0,40403.0,0.20248968]
[1645190740087,1.05641141,40404.0,40403.0,0.20248968]
[1645190741534,0.794583,40404.0,40403.0,0.20248968]
[1645190741732,0.494583,40404.0,40403.0,0.20248968]
[1645190742733,0.432667,40404.0,40403.0,0.20248968]
[1645190743336,0.43429596,40404.0,40403.0,0.20551607]
[1645190744193,0.10162896,40404.0,40403.0,0.20551607]
[1645190744383,0.43429596,40404.0,40403.0,0.20551607]
[1645190744584,0.10162896,40404.0,40403.0,0.20551607]
[1645190746184,0.43429596,40404.0,40403.0,0.20551607]
[1645190746684,0.10125452,40404.0,40403.0,0.20551607]
[1645190747084,0.43392152,40404.0,40403.0,0.20551607]
[1645190747284,0.10125452,40404.0,40403.0,0.20551607]
[1645190747584,0.43392152,40404.0,40403.0,0.20551607]
[1645190747785,0.10125452,40404.0,40403.0,0.20551607]
[1645190748033,0.73392152,40404.0,40403.0,0.20551607]
[1645190748435,0.73529584,40404.0,40403.0,0.20248968]
[1645190748637,0.43529584,40404.0,40403.0,0.20277172]
[1645190748834,0.15262884,40404.0,40403.0,0.20277172]
[1645190749633,0.15162884,40404.0,40403.0,0.20277172]
[1645190749841,0.15651618,40404.0,40403.0,0.20277172]
[1645190750033,0.06091399,40404.0,40403.0,0.20277172]
[1645190750233,0.16091399,40404.0,40403.0,0.20277172]
[1645190752981,0.49358099,40404.0,40403.0,0.20277172]
[1645190753785,0.16091399,40404.0,40403.0,0.20277172]
[1645190753983,0.49358099,40404.0,40403.0,0.20277172]
[1645190754483,0.49558099,40404.0,40403.0,0.20277172]
[1645190754686,0.16291399,40404.0,40403.0,0.20277172]
[1645190754885,0.49558099,40404.0,40403.0,0.20277172]
[1645190755096,0.16291399,40404.0,40403.0,0.20277172]
[1645190755284,0.49558099,40404.0,40403.0,0.20277172]
[1645190755727,0.16091399,40404.0,40403.0,0.20277172]
[1645190756335,0.49558099,40404.0,40403.0,0.20277172]
[1645190756532,0.79558099,40404.0,40403.0,0.20277172]
[1645190756735,0.89558099,40404.0,40403.0,0.20277172]
[1645190756934,0.69558099,40404.0,40403.0,0.20277172]
[1645190757432,1.2,40403.0,40399.0,0.20126545]
[1645190757631,0.382167,40402.0,40399.0,0.20126545]
[1645190757833,0.12386305,40401.0,40399.0,0.201]
[1645190758032,0.432667,40400.0,40396.0,0.0011]
[1645190758432,0.1,40398.0,40396.0,0.0011]
[1645190758632,0.432667,40398.0,40396.0,0.0011]
[1645190758839,0.732667,40398.0,40396.0,0.0011]
[1645190760385,0.733667,40398.0,40396.0,0.0011]
[1645190761584,0.732667,40398.0,40396.0,0.0011]
[1645190761882,0.742267,40398.0,40396.0,0.0011]
[1645190762085,0.742267,40398.0,40393.0,0.00356531]
[1645190762086,1.2,40395.0,40393.0,0.00356531]
[1645190762288,0.732667,40394.0,40392.0,0.00056531]
[1645190762487,0.0495,40393.0,40392.0,0.00056531]
[1645190762687,1.2,40392.0,40389.0,0.00077696]
[1645190762934,0.332667,40389.0,40381.0,0.0121]
[1645190763133,0.332667,40389.0,40379.0,0.0021]
[1645190763134,1.2,40385.0,40379.0,0.0021]
[1645190763333,1.2,40385.0,40378.0,0.0011]
[1645190763334,0.1,40382.0,40378.0,0.0011]
[1645190763534,0.382167,40381.0,40378.0,0.0011]
[1645190763731,0.532667,40379.0,40378.0,0.0011]
[1645190763936,0.682167,40379.0,40378.0,0.0011]
[1645190764231,1.16249376,40379.0,40378.0,0.0011]
[1645190764632,1.16249376,40379.0,40377.0,0.00142346]
[1645190764833,0.1495,40379.0,40377.0,0.00142346]
[1645190765032,0.1,40378.0,40377.0,0.00142346]
[1645190765632,0.432667,40378.0,40377.0,0.00142346]
[1645190768586,0.433667,40378.0,40377.0,0.00142346]
[1645190769683,0.432667,40378.0,40377.0,0.00142346]
[1645190771033,6.771e-05,40379.0,40378.0,0.46256008]
[1645190771642,0.10006771,40379.0,40378.0,0.46256008]
[1645190772033,0.10006771,40379.0,40378.0,0.45756008]
[1645190772234,0.43273471,40379.0,40378.0,0.45756008]
[1645190774489,0.73373471,40379.0,40378.0,0.45756008]
[1645190774690,0.73373471,40379.0,40378.0,0.08579872]
[1645190774887,0.73373471,40379.0,40377.0,0.00640629]
[1645190774888,1.54906895,40378.0,40377.0,0.0011]
[1645190775086,1.73661184,40378.0,40377.0,0.0011]
[1645190775286,1.0,40377.0,40370.0,0.00205815]
[1645190775485,0.632667,40376.0,40370.0,0.00205815]
[1645190775684,0.22720642,40374.0,40370.0,0.00205815]
[1645190775886,0.432667,40373.0,40370.0,0.001]
[1645190776489,0.433667,40373.0,40371.0,0.007]
[1645190776890,0.65545348,40372.0,40371.0,0.007]
[1645190777288,0.95545348,40372.0,40371.0,0.007]
[1645190778136,0.65545348,40372.0,40371.0,0.007]
[1645190778438,0.95545348,40372.0,40371.0,0.007]
[1645190778642,0.95545348,40372.0,40370.0,0.001]
[1645190778643,1.00495348,40372.0,40370.0,0.001]
[1645190778839,0.93566724,40371.0,40370.0,0.001]
[1645190779038,0.78516724,40371.0,40370.0,0.001]
[1645190779236,0.88516724,40371.0,40370.0,0.001]
[1645190779443,1.26198174,40370.0,40364.0,0.001]
[1645190779636,0.2180332,40367.0,40364.0,0.001]
[1645190779837,0.332667,40367.0,40364.0,0.001]
[1645190780237,0.432667,40367.0,40364.0,0.001]
[1645190780438,0.433667,40367.0,40364.0,0.32194239]
[1645190780636,0.433667,40367.0,40365.0,0.064075]
[1645190781046,0.101,40367.0,40365.0,0.064075]
[1645190781240,0.101,40367.0,40366.0,0.633767]
[1645190781441,0.101,40367.0,40366.0,0.333767]
[1645190781698,0.101,40367.0,40366.0,0.0011]
[1645190781992,0.433667,40367.0,40366.0,0.0011]
[1645190782183,0.432667,40367.0,40366.0,0.0011]
[1645190782583,0.432667,40367.0,40366.0,0.0021]
[1645190783287,0.432667,40367.0,40366.0,0.00499694]
[1645190783686,0.432667,40367.0,40366.0,0.00399694]
[1645190784086,0.1,40367.0,40366.0,0.00399694]
[1645190784495,0.1239138,40376.0,40366.0,0.00399694]
[1645190784690,0.0092,40380.0,40369.0,0.061952]
[1645190784892,0.0092,40380.0,40379.0,0.18934251]
[1645190785090,0.27608939,40385.0,40379.0,0.18934251]
[1645190785439,0.06194499,40386.0,40379.0,0.18934251]
[1645190785647,0.1163,40395.0,40379.0,0.18934251]
[1645190785648,0.0092,40390.0,40380.0,0.332667]
[1645190786038,0.0092,40390.0,40386.0,0.22397176]
[1645190786238,0.0092,40390.0,40386.0,0.27397176]
[1645190786438,0.1,40387.0,40386.0,0.05]
[1645190786638,0.432667,40387.0,40386.0,0.05]
[1645190786839,0.1,40387.0,40386.0,0.061937]
[1645190787046,0.001,40390.0,40386.0,0.361937]
[1645190787240,0.001,40390.0,40387.0,0.05]
[1645190787439,0.001,40390.0,40388.0,0.332667]
[1645190787644,0.001,40390.0,40389.0,0.0527]
[1645190787942,0.001,40390.0,40389.0,0.52537078]
[1645190788139,0.001,40390.0,40389.0,0.21512877]
[1645190788341,0.101,40390.0,40389.0,0.05]
[1645190788539,0.433667,40390.0,40389.0,0.05]
[1645190788741,0.433667,40390.0,40387.0,0.00027934]
[1645190788942,0.433667,40390.0,40386.0,0.18605734]
[1645190788943,0.101,40390.0,40386.0,0.18605734]
[1645190789187,0.1,40388.0,40387.0,0.30944069]
[1645190789381,0.001,40390.0,40387.0,0.05027934]
[1645190789782,0.1,40388.0,40387.0,0.00027934]
[1645190789983,0.1,40388.0,40386.0,0.53605734]
[1645190790385,0.06219309,40394.0,40387.0,0.31539143]
[1645190790386,0.31381626,40394.0,40387.0,0.31539143]
[1645190790584,0.002,40393.0,40387.0,0.00127934]
[1645190790984,0.1,40388.0,40387.0,0.00127934]
[1645190791786,0.1,40388.0,40387.0,0.00027934]
[1645190791989,0.1,40388.0,40386.0,0.52104338]
[1645190792387,0.1,40387.0,40386.0,0.52104338]
[1645190793445,0.1,40387.0,40386.0,0.39720238]
[1645190794444,0.1,40387.0,40386.0,0.39820238]
[1645190794946,0.1,40387.0,40386.0,0.11321634]
[1645190795349,0.432667,40387.0,40386.0,0.06321634]
[1645190795547,0.72769468,40387.0,40386.0,0.001]
[1645190795749,0.44491322,40387.0,40385.0,0.00027934]
[1645190795946,0.34783052,40386.0,40383.0,0.00027934]
[1645190796145,0.432567,40383.0,40382.0,0.05]
[1645190796345,0.332667,40383.0,40382.0,0.05]
[1645190796785,0.432667,40383.0,40382.0,0.05]
[1645190798085,0.432667,40383.0,40382.0,0.05027934]
[1645190798585,0.432667,40383.0,40382.0,0.05]
[1645190800662,0.433667,40383.0,40382.0,0.05]
[1645190801463,0.432667,40383.0,40382.0,0.05]
[1645190803066,0.1,40383.0,40382.0,0.05]
[1645190803270,0.1,40383.0,40382.0,0.35298093]
[1645190803466,0.10252995,40383.0,40382.0,0.10270159]
[1645190804494,0.43719695,40383.0,40382.0,0.10270159]
[1645190804798,0.10452995,40383.0,40382.0,0.10270159]
[1645190804996,1.532667,40382.0,40368.0,0.00105667]
[1645190805204,1.532667,40382.0,40352.0,0.619437]
[1645190805205,0.15,40362.0,40352.0,0.19378959]
[1645190805400,0.2,40364.0,40346.0,0.0031]
[1645190805401,0.16531024,40361.0,40346.0,0.0031]
[1645190805602,0.1,40353.0,40335.0,0.002]
[1645190805900,1.4,40338.0,40327.0,0.0623102]
[1645190806099,0.00059,40327.0,40325.0,0.0026964]
[1645190806300,1.602667,40326.0,40325.0,0.0011928]
[1645190806500,1.602667,40326.0,40314.0,4.32027996]
[1645190806501,2.0401608,40326.0,40314.0,4.32027996]
[1645190806699,2.0401608,40326.0,40314.0,3.61599897]
[1645190806700,0.4626929,40317.0,40314.0,3.61599897]
[1645190806897,0.07,40315.0,40314.0,3.34526941]
[1645190807096,0.07,40315.0,40314.0,1.80893009]
[1645190807097,0.752167,40315.0,40314.0,1.80893009]
[1645190807299,0.552167,40315.0,40314.0,1.79146156]
[1645190807605,0.481167,40315.0,40314.0,1.73146156]
[1645190807802,0.481167,40315.0,40312.0,0.00031456]
[1645190807803,0.432667,40315.0,40312.0,0.00031456]
[1645190808043,0.2,40315.0,40312.0,0.00031456]
[1645190808242,0.2,40315.0,40314.0,0.31924868]
[1645190808550,0.22402436,40318.0,40314.0,0.84734367]
[1645190808551,0.0999,40318.0,40314.0,0.84734367]
[1645190808746,0.002,40320.0,40314.0,0.84734367]
[1645190808747,0.002,40320.0,40315.0,0.332667]
[1645190808945,0.002,40320.0,40314.0,0.51467667]
[1645190808946,0.002,40320.0,40318.0,0.332667]
[1645190809143,0.002,40320.0,40314.0,0.31924868]
[1645190809343,0.1,40316.0,40315.0,0.56715307]
[1645190809541,0.002,40320.0,40315.0,0.56715307]
[1645190809744,0.06235097,40322.0,40315.0,0.61715307]
[1645190809942,0.06235097,40322.0,40315.0,0.6173936]
[1645190809943,0.1,40316.0,40315.0,0.6173936]
[1645190810143,0.1,40316.0,40315.0,0.2842266]
[1645190810348,0.432667,40316.0,40315.0,0.04974053]
[1645190810747,0.432667,40316.0,40315.0,0.00024053]
[1645190810748,0.532667,40316.0,40315.0,0.00024053]
[1645190810945,0.532667,40316.0,40312.0,0.00031456]
[1645190810946,0.26204665,40316.0,40312.0,0.00031456]
[1645190811155,2.37305548,40316.0,40313.0,0.33291594]
[1645190811347,0.1649734,40321.0,40313.0,0.54610507]
[1645190811545,0.1649734,40321.0,40313.0,0.21343807]
[1645190811794,0.1,40314.0,40313.0,0.00024894]
[1645190811996,0.432667,40314.0,40313.0,0.00024894]
[1645190812193,0.432667,40314.0,40312.0,0.00031456]
[1645190812394,0.332667,40313.0,40312.0,0.00031456]
[1645190812696,0.44656485,40313.0,40312.0,0.00031456]
[1645190812899,0.21389785,40313.0,40312.0,0.00031456]
[1645190813295,0.2,40313.0,40312.0,0.00031456]
[1645190813893,0.1,40313.0,40312.0,0.00031456]
[1645190816447,0.101,40313.0,40312.0,0.00031456]
[1645190816648,0.433667,40313.0,40312.0,0.00031456]
[1645190816846,0.101,40313.0,40312.0,0.00031456]
[1645190817248,0.433667,40313.0,40312.0,0.00031456]
[1645190817448,0.833667,40313.0,40312.0,0.00031456]
[1645190817654,1.28051911,40313.0,40312.0,0.00031456]
[1645190817848,0.332667,40312.0,40311.0,0.01112471]
[1645190818056,0.00011529,40311.0,40300.0,0.000401]
[1645190818250,0.2,40308.0,40289.0,0.00127166]
[1645190818456,0.6191,40305.0,40289.0,0.00127166]
[1645190818653,1.382167,40307.0,40291.0,0.01]
[1645190818654,0.2,40302.0,40291.0,0.01]
[1645190818848,0.05,40303.0,40282.0,0.0091]
[1645190818849,0.1,40295.0,40282.0,0.0091]
[1645190819048,0.1,40295.0,40290.0,0.332667]
[1645190819296,0.1,40292.0,40290.0,0.58363342]
[1645190819496,0.1,40291.0,40285.0,0.35382984]
[1645190819795,0.1,40290.0,40284.0,0.124143]
[1645190819997,0.532667,40289.0,40283.0,0.0168]
[1645190820196,0.1,40285.0,40281.0,0.00274606]
[1645190820396,0.332667,40284.0,40281.0,0.00274606]
[1645190820599,0.432667,40284.0,40281.0,0.00274606]
[1645190820795,0.1,40282.0,40281.0,0.00274606]
[1645190820993,0.432667,40282.0,40281.0,0.00274606]
[1645190821192,0.432667,40282.0,40281.0,0.00254606]
[1645190821396,0.532667,40282.0,40281.0,0.00254606]
[1645190822195,0.832667,40282.0,40281.0,0.00254606]
[1645190822496,0.90125742,40282.0,40281.0,0.00254606]
[1645190822696,1.2,40281.0,40279.0,9.509e-05]
[1645190822939,0.06212599,40279.0,40271.0,0.0117197]
[1645190823145,0.19952,40277.0,40271.0,0.0117197]
[1645190823341,0.632667,40276.0,40271.0,0.0117197]
[1645190823542,0.632667,40276.0,40260.0,0.0502643]
[1645190823543,0.1,40272.0,40260.0,0.03674814]
[1645190823741,0.1,40272.0,40264.0,0.1]
[1645190823944,0.1,40278.0,40269.0,0.1]
[1645190823945,0.1,40271.0,40269.0,0.1]
[1645190824142,0.1,40271.0,40270.0,1.077637]
[1645190824341,0.332667,40277.0,40270.0,1.07583667]
[1645190824540,0.1,40271.0,40270.0,1.07583667]
[1645190824741,0.432667,40271.0,40270.0,1.07583667]
[1645190824941,0.1,40271.0,40270.0,1.12083667]
[1645190825343,0.1,40271.0,40270.0,1.27083667]
[1645190825846,0.08996222,40282.0,40270.0,1.42083667]
[1645190826046,0.08996222,40282.0,40280.0,0.332667]
[1645190826244,0.08996222,40282.0,40281.0,0.79427]
[1645190826700,0.18996222,40282.0,40281.0,0.79427]
[1645190826995,0.00181331,40290.0,40281.0,0.79427]
[1645190826996,0.2249403,40294.0,40281.0,2.20415186]
[1645190827196,0.31149776,40304.0,40281.0,2.20415186]
[1645190827197,0.16015203,40318.0,40296.0,2.50509941]
[1645190827400,0.08664078,40322.0,40306.0,0.1]
[1645190827595,0.08664078,40322.0,40309.0,0.6191]
[1645190827794,0.08664078,40322.0,40310.0,0.682142]
[1645190827994,0.18664078,40322.0,40311.0,0.83698175]
[1645190828192,0.18664078,40322.0,40318.0,0.19955589]
[1645190828193,0.3409228,40321.0,40318.0,0.19955589]
[1645190828400,0.001,40319.0,40318.0,0.0495]
[1645190828598,0.44530289,40316.0,40315.0,0.124069]
[1645190828997,0.77796989,40316.0,40315.0,0.124069]
[1645190829197,0.54530289,40316.0,40315.0,0.174069]
[1645190829598,0.54530289,40316.0,40315.0,0.223569]
[1645190829997,0.87796989,40316.0,40315.0,0.223569]
[1645190830453,0.87896989,40316.0,40315.0,0.223569]
[1645190830651,0.97896989,40316.0,40315.0,0.218569]
[1645190831059,0.97896989,40316.0,40312.0,0.062037]
[1645190831060,0.97896989,40316.0,40312.0,0.062055]
[1645190831355,0.97896989,40316.0,40310.0,0.002]
[1645190831356,0.01556429,40314.0,40310.0,0.002]
[1645190831553,0.332667,40313.0,40310.0,0.002]
[1645190831754,0.332667,40313.0,40308.0,0.186163]
[1645190831755,0.1,40311.0,40308.0,0.186163]
[1645190831952,0.1,40311.0,40309.0,0.0495]
[1645190832152,0.01556429,40314.0,40310.0,0.062054]
[1645190832353,0.01556429,40314.0,40310.0,0.362054]
[1645190832852,0.01556429,40314.0,40313.0,0.29317007]
[1645190833158,0.44630289,40316.0,40315.0,0.00238027]
[1645190833159,0.00183789,40316.0,40315.0,0.00238027]
[1645190833355,0.00183789,40316.0,40315.0,0.73504727]
[1645190833551,0.20862,40334.0,40316.0,0.75]
[1645190833756,0.20862,40334.0,40317.0,0.0495]
[1645190833759,0.15,40332.0,40317.0,0.0495]
[1645190833953,0.34248231,40327.0,40320.0,0.20601851]
[1645190834203,0.34248231,40327.0,40321.0,0.0495]
[1645190834393,0.44248231,40327.0,40321.0,0.0495]
[1645190834593,0.41930778,40322.0,40321.0,0.0495]
[1645190834794,0.51930778,40322.0,40321.0,0.0495]
[1645190834992,0.51930778,40322.0,40320.0,0.05]
[1645190835394,0.432667,40321.0,40313.0,0.05]
[1645190835594,0.1,40321.0,40313.0,0.05]
[1645190835794,0.432667,40320.0,40315.0,0.00265731]
[1645190835993,0.432667,40320.0,40316.0,0.24909873]
[1645190836193,0.332667,40320.0,40316.0,0.00027704]
[1645190836398,0.1,40317.0,40315.0,0.00238027]
[1645190836703,0.333667,40320.0,40315.0,0.00238027]
[1645190836704,0.432667,40316.0,40315.0,0.00265731]
[1645190836896,0.732187,40316.0,40315.0,0.00265731]
[1645190837093,0.732187,40316.0,40315.0,0.00238027]
[1645190837494,0.65140744,40316.0,40315.0,0.00238027]
[1645190838162,0.65140744,40316.0,40307.0,0.00264931]
[1645190838463,0.55240744,40316.0,40310.0,0.26753065]
[1645190838662,0.55240744,40316.0,40310.0,0.26780769]
[1645190838663,0.583667,40316.0,40310.0,0.26780769]
[1645190838861,0.433667,40316.0,40310.0,0.26780769]
[1645190839069,0.1,40311.0,40310.0,0.39190069]
[1645190839264,0.1,40311.0,40310.0,0.63099624]
[1645190839564,0.1,40311.0,40310.0,0.74162365]
[1645190839763,0.1,40311.0,40310.0,0.86573065]
[1645190839961,0.1,40311.0,40310.0,0.86600769]
[1645190840565,0.1,40311.0,40310.0,1.13238298]
[1645190841164,0.1,40311.0,40310.0,0.83238298]
[1645190841573,0.1,40311.0,40310.0,1.16504998]
[1645190841809,0.1,40311.0,40310.0,1.28810698]
[1645190842009,0.08914018,40322.0,40311.0,1.25]
[1645190842207,0.08914018,40322.0,40316.0,0.11203]
[1645190842405,0.08914018,40322.0,40317.0,1.408654]
[1645190842607,0.08914018,40322.0,40320.0,0.57966874]
[1645190842810,0.08914018,40322.0,40320.0,0.67966874]
[1645190843207,0.1,40321.0,40320.0,0.97966874]
[1645190843406,0.09682294,40321.0,40320.0,0.8673649]
[1645190843606,0.09682294,40321.0,40320.0,0.86764194]
[1645190843808,0.26874044,40334.0,40322.0,0.186054]
[1645190844211,0.26874044,40334.0,40323.0,0.05]
[1645190844407,0.26874044,40334.0,40326.0,0.124044]
[1645190844608,0.02059987,40324.0,40323.0,0.05554697]
[1645190845010,0.35326687,40324.0,40323.0,0.05554697]
[1645190845210,0.35326687,40324.0,40323.0,0.24159897]
[1645190845211,0.45326687,40324.0,40323.0,0.24159897]
[1645190846146,0.40326687,40324.0,40323.0,0.24159897]
[1645190846546,0.333667,40324.0,40323.0,0.05554697]
[1645190846751,0.533667,40324.0,40323.0,0.00554697]
[1645190847148,0.533667,40324.0,40320.0,0.186098]
[1645190847149,0.332667,40323.0,40320.0,0.186098]
[1645190847448,0.332667,40323.0,40311.0,0.12405936]
[1645190847449,0.2,40323.0,40311.0,0.12405936]
[1645190847646,0.2,40323.0,40312.0,0.0096]
[1645190847846,0.28902301,40320.0,40312.0,0.38986923]
[1645190848047,0.1,40323.0,40320.0,0.062022]
[1645190848449,0.1,40321.0,40320.0,0.062022]
[1645190849048,0.433215,40321.0,40320.0,0.062022]
[1645190849299,0.433215,40321.0,40317.0,0.124076]
[1645190849494,0.332288,40320.0,40317.0,0.124076]
[1645190849694,0.432288,40320.0,40317.0,0.124076]
[1645190850093,0.1,40318.0,40317.0,0.124076]
[1645190851193,0.1,40318.0,40317.0,0.31664648]
[1645190853044,0.1,40318.0,40317.0,0.64986148]
[1645190853447,0.1,40318.0,40317.0,0.94986148]
[1645190853744,0.1,40318.0,40317.0,0.457291]
[1645190853944,0.1,40318.0,40317.0,0.124076]
[1645190854745,0.1,40318.0,40317.0,0.34895948]
[1645190855249,0.1,40318.0,40317.0,0.73217448]
[1645190855448,0.00471889,40320.0,40317.0,0.73217448]
[1645190855647,0.00471889,40320.0,40317.0,0.39895948]
[1645190855847,0.1,40318.0,40317.0,0.73217448]
[1645190856246,0.20799293,40328.0,40318.0,1.2]
[1645190856451,0.20799293,40328.0,40325.0,0.1]
[1645190856709,0.08528399,40335.0,40325.0,0.1]
[1645190856710,0.20799293,40334.0,40326.0,1.2]
[1645190856905,0.08505042,40335.0,40327.0,0.333215]
[1645190857101,0.08520336,40335.0,40327.0,0.433215]
[1645190857298,0.08520336,40335.0,40328.0,2.2141303]
[1645190857498,0.01,40339.0,40328.0,2.2141303]
[1645190857499,0.01,40339.0,40338.0,0.59127723]
[1645190857696,0.01,40339.0,40338.0,0.69011723]
[1645190858099,0.11,40339.0,40338.0,0.69011723]
[1645190858299,0.08293849,40348.0,40338.0,0.75210923]
[1645190858508,0.08293849,40348.0,40342.0,1.411]
[1645190858706,0.31446932,40356.0,40347.0,1.2]
[1645190858707,0.20964621,40355.0,40347.0,1.2]
[1645190858905,0.27205776,40359.0,40353.0,2.311]
[1645190859102,0.01,40359.0,40356.0,0.20824302]
[1645190859300,0.08197652,40362.0,40358.0,0.061955]
[1645190859608,0.06697652,40362.0,40361.0,0.27333997]
[1645190859803,0.06697652,40362.0,40361.0,0.21969635]
[1645190860299,0.06697652,40362.0,40361.0,0.45104731]
[1645190860300,0.16697652,40362.0,40361.0,0.45104731]
[1645190860557,0.16697652,40362.0,40361.0,0.84674731]
[1645190860753,0.16697652,40362.0,40361.0,0.54674731]
[1645190860954,0.16697652,40362.0,40361.0,0.84774731]
[1645190861653,0.01,40369.0,40362.0,1.2]
[1645190861853,0.01,40369.0,40364.0,0.247775]
[1645190862055,0.01,40369.0,40365.0,0.633016]
[1645190862259,0.01,40369.0,40365.0,0.683016]
[1645190862653,0.01,40369.0,40367.0,0.333016]
[1645190862855,0.01,40369.0,40368.0,0.061948]
[1645190863055,0.01,40369.0,40368.0,0.18584416]
[1645190863056,0.01026289,40369.0,40368.0,0.18584416]
[1645190863354,0.01026289,40369.0,40368.0,0.51886016]
[1645190863554,0.11026289,40369.0,40368.0,0.56886016]
[1645190863954,0.11026289,40369.0,40368.0,0.61456016]
[1645190864205,0.11,40369.0,40368.0,0.61456016]
[1645190864601,0.11,40369.0,40368.0,0.21959616]
[1645190864805,0.11,40369.0,40368.0,0.0957]
[1645190865002,0.11,40369.0,40367.0,0.37167653]
[1645190865003,0.333016,40368.0,40367.0,0.061946]
[1645190865203,0.333016,40368.0,40362.0,0.5099]
[1645190865204,0.333016,40368.0,40362.0,0.5]
[1645190865402,0.333016,40368.0,40349.0,0.0457]
[1645190865403,0.26874044,40366.0,40349.0,0.0457]
[1645190865604,0.26874044,40366.0,40350.0,0.1239484]
[1645190865605,0.1,40363.0,40350.0,0.1239484]
[1645190865803,0.29907127,40358.0,40350.0,0.35980124]
[1645190866202,0.1,40351.0,40350.0,0.35980124]
[1645190866804,0.1,40351.0,40350.0,0.68423741]
[1645190867005,0.1,40351.0,40350.0,0.41180124]
[1645190867206,0.1,40351.0,40350.0,0.46180124]
[1645190867704,0.1,40351.0,40350.0,0.383016]
[1645190867943,0.1,40351.0,40350.0,0.05]
[1645190868143,0.1,40351.0,40350.0,0.1739484]
[1645190868343,0.1,40351.0,40350.0,0.05]
[1645190868948,0.734016,40351.0,40345.0,0.0113]
[1645190869147,0.333016,40350.0,40345.0,0.0113]
[1645190869345,0.533016,40350.0,40345.0,0.002]
[1645190869546,0.1,40346.0,40345.0,0.002]
[1645190870245,0.1,40346.0,40343.0,0.49369491]
[1645190870644,0.00023304,40348.0,40344.0,0.061996]
[1645190870847,0.00023304,40348.0,40345.0,0.333016]
[1645190871046,0.00023304,40348.0,40346.0,0.56380397]
[1645190871246,0.001,40351.0,40346.0,0.05]
[1645190871451,0.001,40351.0,40347.0,0.0149942]
[1645190871708,0.33324904,40349.0,40347.0,0.0149942]
[1645190871901,0.00023304,40349.0,40347.0,0.0052942]
[1645190872100,0.00023304,40349.0,40348.0,0.333016]
[1645190872298,0.00023304,40349.0,40347.0,0.0052942]
[1645190872299,0.00023304,40349.0,40347.0,0.32868078]
[1645190872506,0.001,40351.0,40347.0,0.32868078]
[1645190872700,0.1,40349.0,40348.0,0.123964]
[1645190872998,0.001,40349.0,40348.0,0.247926]
[1645190873201,0.101,40349.0,40348.0,0.247926]
[1645190874004,0.101,40349.0,40348.0,0.297926]
[1645190874202,0.1,40349.0,40348.0,0.297926]
[1645190874802,0.101,40349.0,40348.0,0.297926]
[1645190875009,0.101,40349.0,40348.0,0.247926]
[1645190875743,0.101,40349.0,40348.0,0.297926]
[1645190875744,0.0957061,40349.0,40348.0,0.297926]
[1645190875944,0.001,40349.0,40348.0,0.630942]
[1645190876145,0.1,40359.0,40349.0,0.00456657]
[1645190876345,0.1,40359.0,40351.0,0.06653565]
[1645190876544,0.42844061,40359.0,40354.0,0.27403155]
[1645190876745,0.42844061,40359.0,40356.0,0.061973]
[1645190876946,0.333016,40358.0,40357.0,0.00456568]
[1645190877145,0.1,40357.0,40356.0,0.06182052]
[1645190877551,0.333016,40357.0,40356.0,0.06182052]
[1645190877748,0.433016,40357.0,40356.0,0.06182052]
[1645190879217,0.333016,40356.0,40352.0,0.061986]
[1645190879600,0.1,40355.0,40352.0,0.12397]
[1645190879802,0.333016,40354.0,40352.0,0.12397]
[1645190880108,0.433016,40353.0,40352.0,0.061986]
[1645190881201,0.43268415,40353.0,40352.0,0.061986]
[1645190881403,0.333016,40353.0,40352.0,0.061986]
[1645190881603,0.513021,40353.0,40350.0,0.123966]
[1645190881806,0.25,40351.0,40347.0,0.123986]
[1645190882106,0.25,40351.0,40338.0,0.24022923]
[1645190882107,0.25,40351.0,40328.0,0.06200765]
[1645190882108,0.333016,40344.0,40328.0,0.06200765]
[1645190882303,0.333016,40344.0,40334.0,0.0093]
[1645190882304,0.433016,40344.0,40334.0,0.0093]
[1645190882504,0.433016,40344.0,40338.0,0.062008]
[1645190882955,0.434016,40344.0,40338.0,0.32980729]
[1645190883254,0.433016,40339.0,40338.0,0.047008]
[1645190883653,0.433016,40339.0,40337.0,0.062011]
[1645190883854,0.333016,40338.0,40337.0,0.062011]
[1645190884055,0.433016,40338.0,40337.0,0.062011]
[1645190884259,0.1,40338.0,40337.0,0.34438807]
[1645190884758,0.1,40338.0,40337.0,0.39438807]
[1645190885157,0.1,40338.0,40337.0,0.34438807]
[1645190885362,0.1,40338.0,40337.0,0.112011]
[1645190887305,0.433016,40338.0,40337.0,0.112011]
[1645190887506,0.333016,40337.0,40336.0,0.23958166]
[1645190887708,0.1,40338.0,40336.0,0.23958166]
[1645190887914,0.433016,40337.0,40336.0,0.23958166]
[1645190889009,0.1,40337.0,40336.0,0.23958166]
[1645190889410,0.1,40337.0,40336.0,0.28958166]
[1645190889611,0.1,40337.0,40336.0,0.67259766]
[1645190890009,0.1,40337.0,40336.0,1.01440952]
[1645190891046,0.1,40337.0,40336.0,0.68139352]
[1645190891745,0.1,40337.0,40336.0,0.55741152]
[1645190892345,0.1,40337.0,40336.0,0.89042752]
[1645190892951,0.1,40337.0,40336.0,0.55741152]
[1645190893147,0.1,40337.0,40336.0,0.61940752]
[1645190893346,0.1,40337.0,40336.0,0.624971]
[1645190895395,0.1,40337.0,40336.0,0.39508149]
[1645190896200,0.1,40337.0,40336.0,0.64300249]